{"text_format":"1","workbook":"xlsx","n_sheets":1,"sheets":["Sheet1"],"not_rendered":{"charts":0,"images":0,"macros":1,"external_links":0,"defined_names":0,"comments":0,"pivot_tables":0},"unopened":[],"bounds":{"document_bytes":16777216,"sheet_cells":100000,"rows_first":2000,"rows_last":500,"rows_between":2000,"halvings":0,"cell_chars":16384,"cell_head_chars":4096},"cells_cut":0,"cells_raw":0,"read":"whole","date_system":"1900"}

{"sheet":"Sheet1","index":0,"n_rows":38,"n_cols":19,"rows_kept":38,"cut":false,"hidden":false,"merged":[]}
[null,null,null,null,null,null,null,null,null,null,null,null,null,null,null,null,null,"Code","Bank Name"]
["Code","Name","Date",500,200,100,50,20,10,5,2,1,"Total Cash",null,null,null,null,11111,"Bank 1"]
[11111,{"$f":"_xlfn.IFNA(VLOOKUP(A3,$R$1:$S$23,2,0),\"\")","v":"Bank 1"},{"$f":"IF(A3=\"\",\"\",NOW())","v":"2021-01-02T09:56:47.810"},-10,-14,-10,null,-13,null,null,null,null,{"$f":"SUMPRODUCT($D$2:$L$2,D3:L3)","v":-9060},null,null,null,null,11112,"Ahmed"]
[null,{"$f":"_xlfn.IFNA(VLOOKUP(A4,$R$1:$S$23,2,0),\"\")","v":""},{"$f":"IF(A4=\"\",\"\",NOW())","v":""},null,null,null,null,null,null,null,null,null,{"$f":"SUMPRODUCT($D$2:$L$2,D4:L4)","v":0},null,null,null,null,11113,"Ali"]
[null,"","",null,null,null,null,null,null,null,null,null,0,null,null,null,null,11114,"Mahmoud"]
[null,"","",null,null,null,null,null,null,null,null,null,0,null,null,null,null,11115,"Said"]
[null,"","",null,null,null,null,null,null,null,null,null,0,null,null,null,null,1116,"Bank 2"]
[null,"","",null,null,null,null,null,null,null,null,null,0]
[null,"","",null,null,null,null,null,null,null,null,null,0]
[null,"","",null,null,null,null,null,null,null,null,null,0]
[null,"","",null,null,null,null,null,null,null,null,null,0]
[null,"","",null,null,null,null,null,null,null,null,null,0]
[1116,"Bank 2","2021-01-02T09:56:47.810",-10,-10,-10,null,null,-50,null,null,null,-8500]
[null,"","",null,null,null,null,null,null,null,null,null,0]
[null,"","",null,null,null,null,null,null,null,null,null,0]
[null,"","",null,null,null,null,null,null,null,null,null,0]
[null,"","",null,null,null,null,null,null,null,null,null,0]
[null,"","",null,null,null,null,null,null,null,null,null,0]
[null,"","",null,null,null,null,null,null,null,null,null,0]
[null,"","",null,null,null,null,null,null,null,null,null,0]
[null,"","",null,null,null,null,null,null,null,null,null,0]
[null,"","",null,null,null,null,null,null,null,null,null,0]
[null,"","",null,null,null,null,null,null,null,null,null,0]
[null,"","",null,null,null,null,null,null,null,null,null,0]
[null,"","",null,null,null,null,null,null,null,null,null,0]
[null,"","",null,null,null,null,null,null,null,null,null,0]
[null,"","",null,null,null,null,null,null,null,null,null,0]
[null,"","",null,null,null,null,null,null,null,null,null,0]
[null,"","",null,null,null,null,null,null,null,null,null,0]
[null,"","",null,null,null,null,null,null,null,null,null,0]
[null,"","",null,null,null,null,null,null,null,null,null,0]
[null,"","",null,null,null,null,null,null,null,null,null,0]
[null,"","",null,null,null,null,null,null,null,null,null,0]
[null,"","",null,null,null,null,null,null,null,null,null,0]
[null,"","",null,null,null,null,null,null,null,null,null,0]
[null,"","",null,null,null,null,null,null,null,null,null,0]
[null,"","",null,null,null,null,null,null,null,null,null,0]
[null,"","",null,null,null,null,null,null,null,null,null,0]